[Event "*** Titled Tuesday 3|2 Blitz"]
[Site "Chess.com"]
[Date "2015.11.03"]
[Round "9"]
[White "pedromartinez91"]
[Black "Viaje"]
[Result "1-0"]
[WhiteElo "2218"]
[BlackElo "2224"]
[TimeControl "180+2"]
[EndTime "12:58:19 PST"]
[Termination "pedromartinez91 won by resignation"]

1. e4 {[%clk 0:02:22.8]} 1... c5 {[%clk 0:02:59.6]} 2. Nf3 {[%clk 0:02:22.2]}
2... d6 {[%clk 0:03:01.1]} 3. Bb5+ {[%clk 0:02:22.2]} 3... Bd7 {[%clk
0:03:01.7]} 4. Bxd7+ {[%clk 0:02:23.1]} 4... Qxd7 {[%clk 0:03:03.6]} 5. O-O
{[%clk 0:02:24.2]} 5... Nf6 {[%clk 0:03:04.8]} 6. e5 {[%clk 0:02:23.8]} 6...
dxe5 {[%clk 0:03:06.7]} 7. Nxe5 {[%clk 0:02:24.6]} 7... Qc8 {[%clk 0:03:08.3]}
8. Qf3 {[%clk 0:02:24.9]} 8... e6 {[%clk 0:03:08.8]} 9. Nc3 {[%clk 0:02:25.1]}
9... Nbd7 {[%clk 0:03:07.2]} 10. Nxd7 {[%clk 0:02:24.9]} 10... Qxd7 {[%clk
0:03:06.9]} 11. Qg3 {[%clk 0:02:25.3]} 11... Qd6 {[%clk 0:02:59.1]} 12. Qf3
{[%clk 0:02:22.2]} 12... Qd7 {[%clk 0:02:59.3]} 13. d3 {[%clk 0:02:22.3]} 13...
Be7 {[%clk 0:02:59.4]} 14. Qg3 {[%clk 0:02:22.6]} 14... O-O {[%clk 0:02:58.6]}
15. Bh6 {[%clk 0:02:22.9]} 15... Ne8 {[%clk 0:02:56.1]} 16. Ne4 {[%clk
0:02:22.4]} 16... Kh8 {[%clk 0:02:56.5]} 17. Be3 {[%clk 0:02:21]} 17... b6
{[%clk 0:02:54.3]} 18. Qf3 {[%clk 0:02:12.8]} 18... Nd6 {[%clk 0:02:52]} 19. Nc3
{[%clk 0:02:09.1]} 19... Nf5 {[%clk 0:02:51.3]} 20. Rfe1 {[%clk 0:02:07.9]}
20... Bf6 {[%clk 0:02:51.5]} 21. Bd2 {[%clk 0:02:04.7]} 21... Nd4 {[%clk
0:02:50.9]} 22. Qd1 {[%clk 0:02:04.7]} 22... g6 {[%clk 0:02:44.2]} 23. Ne4
{[%clk 0:02:04.9]} 23... Bg7 {[%clk 0:02:45]} 24. Bc3 {[%clk 0:02:05.2]} 24...
Rae8 {[%clk 0:02:39.2]} 25. Ng5 {[%clk 0:02:04.9]} 25... h6 {[%clk 0:02:37]} 26.
Nf3 {[%clk 0:02:05.5]} 26... e5 {[%clk 0:02:33.6]} 27. Nd2 {[%clk 0:02:04.9]}
27... f5 {[%clk 0:02:33]} 28. a4 {[%clk 0:02:05.2]} 28... Kh7 {[%clk 0:02:31.3]}
29. Nc4 {[%clk 0:02:04.7]} 29... Qd5 {[%clk 0:02:30.3]} 30. Ne3 {[%clk
0:02:03.9]} 30... Qd7 {[%clk 0:02:29.8]} 31. Nc4 {[%clk 0:02:04.7]} 31... Rg8
{[%clk 0:02:18.6]} 32. Bxd4 {[%clk 0:02:05.5]} 32... Qxd4 {[%clk 0:02:18.3]} 33.
c3 {[%clk 0:01:58.6]} 33... Qd7 {[%clk 0:02:17.5]} 34. Qc2 {[%clk 0:01:59.4]}
34... Re7 {[%clk 0:02:12]} 35. Rad1 {[%clk 0:01:59.6]} 35... Rd8 {[%clk
0:02:11.9]} 36. Qb3 {[%clk 0:01:59.4]} 36... Qd5 {[%clk 0:02:00]} 37. f3 {[%clk
0:01:55]} 37... Qc6 {[%clk 0:01:56.7]} 38. Qb5 {[%clk 0:01:53.7]} 38... Qd5
{[%clk 0:01:45]} 39. a5 {[%clk 0:01:54.3]} 39... e4 {[%clk 0:01:43.2]} 40. fxe4
{[%clk 0:01:50.6]} 40... fxe4 {[%clk 0:01:43.7]} 41. axb6 {[%clk 0:01:51.2]}
41... axb6 {[%clk 0:01:42.8]} 42. Nxb6 {[%clk 0:01:51.8]} 42... Qh5 {[%clk
0:01:42.5]} 43. Qc6 {[%clk 0:01:41.3]} 43... Be5 {[%clk 0:01:31.9]} 44. g3
{[%clk 0:01:31.8]} 44... exd3 {[%clk 0:01:29.3]} 45. Nd5 {[%clk 0:01:28.5]}
45... Rd6 {[%clk 0:01:19.4]} 46. Qxc5 {[%clk 0:01:23.1]} 46... d2 {[%clk
0:01:05.1]} 47. Rf1 {[%clk 0:01:02.3]} 47... Red7 {[%clk 0:00:56.3]} 48. Rxd2
{[%clk 0:00:45.9]} 48... Bxg3 {[%clk 0:00:25.1]} 49. Nf6+ {[%clk 0:00:42.2]}
49... Rxf6 {[%clk 0:00:23]} 50. Rxd7+ {[%clk 0:00:42]} 50... Kg8 {[%clk
0:00:23.8]} 51. Qc8+ {[%clk 0:00:41.7]} 1-0

[Event "*** Titled Tuesday 3|2 Blitz"]
[Site "Chess.com"]
[Date "2015.11.03"]
[Round "9"]
[White "GregShahade"]
[Black "kharposh"]
[Result "1-0"]
[WhiteElo "2312"]
[BlackElo "2080"]
[TimeControl "180+2"]
[EndTime "12:59:09 PST"]
[Termination "GregShahade won by checkmate"]

1. e4 {[%clk 0:03:01.9]} 1... e5 {[%clk 0:03:00]} 2. Nf3 {[%clk 0:03:02.4]} 2...
Nc6 {[%clk 0:03:01.3]} 3. Bc4 {[%clk 0:03:02.9]} 3... Be7 {[%clk 0:03:00.4]} 4.
O-O {[%clk 0:03:00.8]} 4... Nf6 {[%clk 0:03:01.5]} 5. d3 {[%clk 0:03:01.5]} 5...
O-O {[%clk 0:03:01]} 6. c3 {[%clk 0:03:02.3]} 6... d6 {[%clk 0:03:01.5]} 7. Bb3
{[%clk 0:03:02.5]} 7... h6 {[%clk 0:03:00.1]} 8. Re1 {[%clk 0:03:03.2]} 8... Re8
{[%clk 0:02:58.6]} 9. Nbd2 {[%clk 0:02:59.5]} 9... Bf8 {[%clk 0:02:59.3]} 10. h3
{[%clk 0:02:53.2]} 10... g6 {[%clk 0:02:59.6]} 11. Nf1 {[%clk 0:02:32.6]} 11...
Bg7 {[%clk 0:03:00.6]} 12. Be3 {[%clk 0:02:32.5]} 12... Be6 {[%clk 0:03:00.2]}
13. Qd2 {[%clk 0:02:32.3]} 13... Bxb3 {[%clk 0:02:56.8]} 14. axb3 {[%clk
0:02:34.2]} 14... a6 {[%clk 0:02:57.4]} 15. Bxh6 {[%clk 0:02:33]} 15... Nh5
{[%clk 0:02:45.9]} 16. Bxg7 {[%clk 0:02:28.8]} 16... Kxg7 {[%clk 0:02:45.4]} 17.
g3 {[%clk 0:02:21.1]} 17... Rh8 {[%clk 0:02:44.4]} 18. Kg2 {[%clk 0:02:14.1]}
18... Qd7 {[%clk 0:02:41.8]} 19. Ng1 {[%clk 0:01:54.5]} 19... Rh7 {[%clk
0:02:33.1]} 20. d4 {[%clk 0:01:46.6]} 20... Rah8 {[%clk 0:02:33.1]} 21. Re3
{[%clk 0:01:38.2]} 21... Nf6 {[%clk 0:02:20.6]} 22. g4 {[%clk 0:01:23.1]} 22...
Qe7 {[%clk 0:01:36.9]} 23. Rae1 {[%clk 0:01:17.2]} 23... Nxg4 {[%clk 0:01:27.4]}
24. hxg4 {[%clk 0:01:15]} 24... Qh4 {[%clk 0:01:28.6]} 25. Ng3 {[%clk
0:00:45.1]} 25... Qxg4 {[%clk 0:01:26]} 26. Qe2 {[%clk 0:00:35.1]} 26... Rh2+
{[%clk 0:01:07.9]} 27. Kf1 {[%clk 0:00:35.5]} 27... Qh4 {[%clk 0:01:04.7]} 28.
d5 {[%clk 0:00:31.1]} 28... Ne7 {[%clk 0:00:58.5]} 29. Qf3 {[%clk 0:00:32.1]}
29... Rf8 {[%clk 0:00:35]} 30. Ke2 {[%clk 0:00:26.9]} 30... f5 {[%clk 0:00:36]}
31. exf5 {[%clk 0:00:14.3]} 31... Nxf5 {[%clk 0:00:36.9]} 32. Nxf5+ {[%clk
0:00:07.9]} 32... Rxf5 {[%clk 0:00:36.9]} 33. Qe4 {[%clk 0:00:04.3]} 33... Qxf2+
{[%clk 0:00:27.1]} 34. Kd3 {[%clk 0:00:05.5]} 34... Qd2+ {[%clk 0:00:23.5]} 35.
Kc4 {[%clk 0:00:06.7]} 35... Rf4 {[%clk 0:00:22]} 36. Qxf4 {[%clk 0:00:08]}
36... exf4 {[%clk 0:00:22.7]} 37. Re7+ {[%clk 0:00:08]} 37... Kh6 {[%clk
0:00:23]} 38. Nf3 {[%clk 0:00:07.9]} 38... b5+ {[%clk 0:00:22.2]} 39. Kb4 {[%clk
0:00:08.5]} 39... Qf2 {[%clk 0:00:14.8]} 40. Nd4 {[%clk 0:00:04.9]} 40... f3
{[%clk 0:00:12.7]} 41. R1e6 {[%clk 0:00:05]} 41... Rg2 {[%clk 0:00:12.6]} 42.
Rxc7 {[%clk 0:00:06]} 42... Qg3 {[%clk 0:00:11.1]} 43. Ree7 {[%clk 0:00:07.3]}
43... Kg5 {[%clk 0:00:07]} 44. Ne6+ {[%clk 0:00:08.4]} 44... Kg4 {[%clk
0:00:07.6]} 45. Rg7 {[%clk 0:00:09.9]} 45... Kf5 {[%clk 0:00:07.6]} 46. Rgf7+
{[%clk 0:00:11]} 46... Ke4 {[%clk 0:00:08.5]} 47. Rce7 {[%clk 0:00:12.5]} 47...
Kd3 {[%clk 0:00:09.3]} 48. Nd4 {[%clk 0:00:10.7]} 48... f2 {[%clk 0:00:09]} 49.
Ne2 {[%clk 0:00:12.2]} 49... Qg4+ {[%clk 0:00:08.4]} 50. Ka5 {[%clk 0:00:13.7]}
50... Rg1 {[%clk 0:00:04.7]} 51. Rxf2 {[%clk 0:00:13.5]} 51... Ra1+ {[%clk
0:00:03.5]} 52. Kb6 {[%clk 0:00:14.7]} 52... Qc8 {[%clk 0:00:04.6]} 53. Nf4#
{[%clk 0:00:14.7]} 1-0

[Event "*** Titled Tuesday 3|2 Blitz"]
[Site "Chess.com"]
[Date "2015.11.03"]
[Round "9"]
[White "1random"]
[Black "Chopper1905"]
[Result "0-1"]
[WhiteElo "1955"]
[BlackElo "2522"]
[TimeControl "180+2"]
[EndTime "12:59:15 PST"]
[Termination "Chopper1905 won by resignation"]

1. e4 {[%clk 0:03:01.9]} 1... c6 {[%clk 0:03:00.8]} 2. d4 {[%clk 0:02:59.1]}
2... d5 {[%clk 0:03:02.7]} 3. e5 {[%clk 0:03:00.8]} 3... Bf5 {[%clk 0:03:03.3]}
4. Nf3 {[%clk 0:03:01.8]} 4... e6 {[%clk 0:03:04.6]} 5. Be2 {[%clk 0:03:03.5]}
5... Nd7 {[%clk 0:03:05.3]} 6. O-O {[%clk 0:03:03.8]} 6... Bg6 {[%clk
0:03:05.3]} 7. Nbd2 {[%clk 0:03:03.1]} 7... Nh6 {[%clk 0:03:06.5]} 8. c3 {[%clk
0:03:02.1]} 8... Be7 {[%clk 0:03:05.7]} 9. Nb3 {[%clk 0:02:59.3]} 9... O-O
{[%clk 0:03:06.4]} 10. Be3 {[%clk 0:02:54.9]} 10... Nf5 {[%clk 0:02:53.3]} 11.
Qd2 {[%clk 0:02:55.7]} 11... f6 {[%clk 0:02:54.1]} 12. exf6 {[%clk 0:02:54.8]}
12... Bxf6 {[%clk 0:02:56]} 13. Bf4 {[%clk 0:02:52.7]} 13... Bh5 {[%clk
0:02:54.2]} 14. Ne5 {[%clk 0:02:50.2]} 14... Nxe5 {[%clk 0:02:42.2]} 15. Bxh5
{[%clk 0:02:37.4]} 15... Nc4 {[%clk 0:02:39.3]} 16. Qe2 {[%clk 0:02:34.8]} 16...
Qd7 {[%clk 0:02:18.9]} 17. Nc5 {[%clk 0:02:32.7]} 17... Qc8 {[%clk 0:02:16.5]}
18. Nxe6 {[%clk 0:02:18.3]} 18... g6 {[%clk 0:02:17.8]} 19. Nxf8 {[%clk
0:02:12.4]} 19... Qxf8 {[%clk 0:02:19.7]} 20. Bf3 {[%clk 0:01:58.5]} 20... Bxd4
{[%clk 0:02:16]} 21. Qe6+ {[%clk 0:01:51]} 21... Kg7 {[%clk 0:02:13.3]} 22. cxd4
{[%clk 0:01:52]} 22... Re8 {[%clk 0:02:14.9]} 23. Qxe8 {[%clk 0:00:50.9]} 23...
Qxe8 {[%clk 0:02:11.1]} 24. b3 {[%clk 0:00:50]} 24... Ncd6 {[%clk 0:01:58.6]}
25. Rae1 {[%clk 0:00:50.3]} 25... Qd7 {[%clk 0:01:58.6]} 26. Re2 {[%clk
0:00:49.4]} 26... Nf7 {[%clk 0:01:53]} 27. Rd1 {[%clk 0:00:44.2]} 27... Nh4
{[%clk 0:01:53]} 28. Be5+ {[%clk 0:00:41.1]} 28... Kh6 {[%clk 0:01:47.9]} 29.
Bf4+ {[%clk 0:00:33.2]} 29... g5 {[%clk 0:01:48.3]} 30. Bg3 {[%clk 0:00:26.3]}
30... Nxf3+ {[%clk 0:01:43.4]} 31. gxf3 {[%clk 0:00:28.2]} 31... Qf5 {[%clk
0:01:44.3]} 32. Kg2 {[%clk 0:00:29.5]} 32... Kg7 {[%clk 0:01:42.7]} 33. Rde1
{[%clk 0:00:29.3]} 33... h5 {[%clk 0:01:43.8]} 34. Re7 {[%clk 0:00:27.2]} 34...
h4 {[%clk 0:01:44.5]} 35. Be5+ {[%clk 0:00:28.3]} 35... Kf8 {[%clk 0:01:45]} 36.
Bb8 {[%clk 0:00:22.4]} 36... g4 {[%clk 0:01:39.1]} 37. fxg4 {[%clk 0:00:17.2]}
37... Qxg4+ {[%clk 0:01:41]} 38. Kh1 {[%clk 0:00:18.5]} 38... Qf3+ {[%clk
0:01:27]} 39. Kg1 {[%clk 0:00:19.8]} 39... h3 {[%clk 0:01:26.5]} 40. Re8+ {[%clk
0:00:15.2]} 40... Kg7 {[%clk 0:01:27.7]} 41. Kf1 {[%clk 0:00:16.6]} 41... Qd3+
{[%clk 0:01:23.7]} 42. Kg1 {[%clk 0:00:16.5]} 42... Ng5 {[%clk 0:01:18.4]} 43.
R8e7+ {[%clk 0:00:15.1]} 43... Kg6 {[%clk 0:01:19.5]} 44. R7e3 {[%clk
0:00:14.7]} 44... Nf3+ {[%clk 0:01:19.2]} 45. Kh1 {[%clk 0:00:13.6]} 45... Nxe1
{[%clk 0:01:20.3]} 46. Rxd3 {[%clk 0:00:14.8]} 46... Nxd3 {[%clk 0:01:22.2]} 47.
Kg1 {[%clk 0:00:15.3]} 47... Kf5 {[%clk 0:01:23.1]} 48. Bxa7 {[%clk 0:00:15.7]}
48... Ke4 {[%clk 0:01:23.6]} 49. Bb6 {[%clk 0:00:15.3]} 49... Nc1 {[%clk
0:01:22.9]} 50. Bc7 {[%clk 0:00:14.2]} 50... Nxa2 {[%clk 0:01:21.9]} 51. f4
{[%clk 0:00:15.6]} 51... Nc1 {[%clk 0:01:22.2]} 52. Kf2 {[%clk 0:00:16.2]} 52...
Nxb3 {[%clk 0:01:23]} 53. Kg3 {[%clk 0:00:17.7]} 53... Nxd4 {[%clk 0:01:24.6]}
54. Kxh3 {[%clk 0:00:19.1]} 54... Ne6 {[%clk 0:01:26.3]} 55. Bb8 {[%clk
0:00:16.3]} 55... d4 {[%clk 0:01:25.9]} 56. Kg4 {[%clk 0:00:16.5]} 56... d3
{[%clk 0:01:22.2]} 57. f5 {[%clk 0:00:17.9]} 57... d2 {[%clk 0:01:22.1]} 58.
fxe6 {[%clk 0:00:19.3]} 58... d1=Q+ {[%clk 0:01:23.8]} 59. Kg5 {[%clk 0:00:21]}
59... Qd5+ {[%clk 0:01:12.8]} 60. Kf6 {[%clk 0:00:21.4]} 60... Qf5+ {[%clk
0:01:06.4]} 61. Ke7 {[%clk 0:00:22.1]} 61... Kd5 {[%clk 0:01:07.5]} 62. Kd8
{[%clk 0:00:22.7]} 62... Qxe6 {[%clk 0:01:09.4]} 63. h4 {[%clk 0:00:24.6]} 63...
Qf7 {[%clk 0:01:03.8]} 64. h5 {[%clk 0:00:25.4]} 64... Ke6 {[%clk 0:01:05.7]}
65. Kc8 {[%clk 0:00:26.8]} 0-1

[Event "*** Titled Tuesday 3|2 Blitz"]
[Site "Chess.com"]
[Date "2015.11.03"]
[Round "9"]
[White "Sadovsky_Artem"]
[Black "manubibi"]
[Result "1/2-1/2"]
[WhiteElo "2407"]
[BlackElo "2432"]
[TimeControl "180+2"]
[EndTime "12:59:33 PST"]
[Termination "Game drawn by agreement"]

1. e4 {[%clk 0:02:57.4]} 1... c5 {[%clk 0:03:00.2]} 2. Nf3 {[%clk 0:02:54.9]}
2... d6 {[%clk 0:02:54.5]} 3. c3 {[%clk 0:02:54.3]} 3... Nf6 {[%clk 0:02:54.5]}
4. h3 {[%clk 0:02:54.2]} 4... g6 {[%clk 0:02:54.9]} 5. Bd3 {[%clk 0:02:41.8]}
5... Bg7 {[%clk 0:02:54.8]} 6. Bc2 {[%clk 0:02:43.5]} 6... O-O {[%clk
0:02:45.9]} 7. O-O {[%clk 0:02:43]} 7... Nc6 {[%clk 0:02:46.9]} 8. Re1 {[%clk
0:02:44.4]} 8... e5 {[%clk 0:02:47.2]} 9. d4 {[%clk 0:02:44.7]} 9... h6 {[%clk
0:02:44.8]} 10. dxe5 {[%clk 0:02:43]} 10... dxe5 {[%clk 0:02:45.3]} 11. Be3
{[%clk 0:02:44.7]} 11... Qe7 {[%clk 0:02:45.8]} 12. Na3 {[%clk 0:02:45.6]} 12...
Rd8 {[%clk 0:02:43.7]} 13. Qe2 {[%clk 0:02:46.3]} 13... Nh5 {[%clk 0:02:44.6]}
14. Qb5 {[%clk 0:02:42]} 14... Bf8 {[%clk 0:02:38.2]} 15. Rad1 {[%clk
0:02:43.1]} 15... Be6 {[%clk 0:02:35.9]} 16. Bb3 {[%clk 0:02:30.7]} 16... Nf4
{[%clk 0:01:51.1]} 17. Bxe6 {[%clk 0:02:06.4]} 17... Qxe6 {[%clk 0:01:51.5]} 18.
Qxb7 {[%clk 0:02:04.6]} 18... Rab8 {[%clk 0:01:42.2]} 19. Qa6 {[%clk 0:02:04.4]}
19... Rxd1 {[%clk 0:01:31.1]} 20. Rxd1 {[%clk 0:02:04.1]} 20... Rxb2 {[%clk
0:01:32.2]} 21. Nc4 {[%clk 0:02:04.7]} 21... Ne2+ {[%clk 0:01:15.9]} 22. Kh1
{[%clk 0:02:03.3]} 22... Nxc3 {[%clk 0:01:17.5]} 23. Nxb2 {[%clk 0:02:00.7]}
23... Nxd1 {[%clk 0:01:05.4]} 24. Nxd1 {[%clk 0:02:02.6]} 24... Qd7 {[%clk
0:00:58.4]} 25. Nc3 {[%clk 0:02:00.6]} 25... Nb4 {[%clk 0:00:44.5]} 26. Qc4
{[%clk 0:02:00.2]} 26... Qd3 {[%clk 0:00:41.2]} 27. Qxd3 {[%clk 0:01:59.1]}
27... Nxd3 {[%clk 0:00:43.1]} 28. Kg1 {[%clk 0:02:00.2]} 28... f5 {[%clk
0:00:40.5]} 29. Kf1 {[%clk 0:02:00.3]} 29... f4 {[%clk 0:00:33.8]} 30. Bd2
{[%clk 0:01:59.4]} 30... c4 {[%clk 0:00:35]} 31. Ke2 {[%clk 0:01:59.2]} 31...
Bc5 {[%clk 0:00:35.9]} 32. Nd1 {[%clk 0:02:00]} 32... Kf7 {[%clk 0:00:34.3]} 33.
Bc3 {[%clk 0:01:58.9]} 33... Ke6 {[%clk 0:00:35.5]} 34. Nb2 {[%clk 0:01:59.6]}
34... Nxf2 {[%clk 0:00:35.8]} 35. Bxe5 {[%clk 0:01:56]} 35... Nxe4 {[%clk
0:00:35.7]} 36. Nxc4 {[%clk 0:01:55.6]} 36... g5 {[%clk 0:00:35.8]} 37. Bg7
{[%clk 0:01:54.4]} 37... Ng3+ {[%clk 0:00:34.2]} 38. Kd3 {[%clk 0:01:54.2]}
38... Nf5 {[%clk 0:00:36.1]} 39. Bd4 {[%clk 0:01:53.1]} 39... Kd5 {[%clk
0:00:32]} 40. Bxc5 {[%clk 0:01:53.3]} 40... Kxc5 {[%clk 0:00:33.9]} 41. Nce5
{[%clk 0:01:54]} 41... Kb4 {[%clk 0:00:28]} 42. Nd4 {[%clk 0:01:49.1]} 42... Nh4
{[%clk 0:00:26.8]} 43. Nc2+ {[%clk 0:01:45.7]} 43... Kb5 {[%clk 0:00:24.6]} 44.
Ne1 {[%clk 0:01:46.2]} 44... Ka4 {[%clk 0:00:21.8]} 45. Kc2 {[%clk 0:01:46.6]}
45... Kb5 {[%clk 0:00:20.1]} 46. Kc3 {[%clk 0:01:47.3]} 46... Kc5 {[%clk
0:00:21]} 47. Nf7 {[%clk 0:01:44.2]} 47... Nf5 {[%clk 0:00:21.1]} 48. Ne5 {[%clk
0:01:45.8]} 48... Kd5 {[%clk 0:00:22.2]} 49. Ng4 {[%clk 0:01:47.1]} 49... Ke4
{[%clk 0:00:22.8]} 50. a4 {[%clk 0:01:45.8]} 50... h5 {[%clk 0:00:20]} 51. Nf6+
{[%clk 0:01:46.7]} 51... Ke3 {[%clk 0:00:21.6]} 52. Nxh5 {[%clk 0:01:48.3]}
52... Kf2 {[%clk 0:00:23.2]} 53. Nd3+ {[%clk 0:01:48.9]} 53... Kxg2 {[%clk
0:00:23.6]} 54. Nhxf4+ {[%clk 0:01:43.9]} 54... gxf4 {[%clk 0:00:25.2]} 55.
Nxf4+ {[%clk 0:01:45.5]} 55... Kg3 {[%clk 0:00:26.8]} 56. Nd5 {[%clk 0:01:44.2]}
56... Kxh3 {[%clk 0:00:27.9]} 57. Kc4 {[%clk 0:01:45.8]} 57... Kg4 {[%clk
0:00:25.3]} 58. Kb5 {[%clk 0:01:47.3]} 58... Nd4+ {[%clk 0:00:24.3]} 59. Ka6
{[%clk 0:01:47.5]} 59... Nc6 {[%clk 0:00:21.3]} 60. Kb7 {[%clk 0:01:48.3]} 60...
Ne5 {[%clk 0:00:21.3]} 61. Kxa7 {[%clk 0:01:49.2]} 61... Kf5 {[%clk 0:00:22]}
62. Kb7 {[%clk 0:01:47.1]} 62... Nc4 {[%clk 0:00:20.1]} 63. Nb6 {[%clk
0:01:46.8]} 63... Na5+ {[%clk 0:00:18.9]} 64. Ka6 {[%clk 0:01:48.1]} 64... Nb3
{[%clk 0:00:19.9]} 65. Kb5 {[%clk 0:01:46.4]} 65... Ke6 {[%clk 0:00:21]} 66. Kb4
{[%clk 0:01:44.6]} 66... Nd4 {[%clk 0:00:22.2]} 67. Kc5 {[%clk 0:01:46.1]} 67...
Nb3+ {[%clk 0:00:23.3]} 68. Kb4 {[%clk 0:01:45.4]} 68... Nd4 {[%clk 0:00:23.8]}
69. Kc4 {[%clk 0:01:47.1]} 69... Nc6 {[%clk 0:00:23.9]} 70. Kc5 {[%clk
0:01:48.8]} 70... Na5 {[%clk 0:00:24.6]} 71. Kb5 {[%clk 0:01:39.2]} 71... Nb3
{[%clk 0:00:23]} 72. Nc4 {[%clk 0:01:36.5]} 72... Kd7 {[%clk 0:00:21.4]} 73. Kb6
{[%clk 0:01:36]} 73... Kc8 {[%clk 0:00:21.3]} 74. Ne5 {[%clk 0:01:25.8]} 74...
Kb8 {[%clk 0:00:21.3]} 75. Nc6+ {[%clk 0:01:27.4]} 75... Ka8 {[%clk 0:00:22.4]}
76. Na5 {[%clk 0:01:27.6]} 76... Nxa5 {[%clk 0:00:23.2]} 77. Kxa5 {[%clk
0:01:29.3]} 77... Ka7 {[%clk 0:00:24.9]} 78. Kb5 {[%clk 0:01:30.9]} 78... Kb7
{[%clk 0:00:26.6]} 79. Ka5 {[%clk 0:01:32.6]} 79... Ka7 {[%clk 0:00:28.5]} 80.
Kb5 {[%clk 0:01:34.2]} 80... Kb7 {[%clk 0:00:30.4]} 1/2-1/2

[Event "*** Titled Tuesday 3|2 Blitz"]
[Site "Chess.com"]
[Date "2015.11.03"]
[Round "9"]
[White "MITerryble"]
[Black "GeorgMeier"]
[Result "1/2-1/2"]
[WhiteElo "2605"]
[BlackElo "2617"]
[TimeControl "180+2"]
[EndTime "13:01:04 PST"]
[Termination "Game drawn by repetition"]

1. d4 {[%clk 0:02:55.8]} 1... Nf6 {[%clk 0:03:00.5]} 2. Nf3 {[%clk 0:02:56.8]}
2... e6 {[%clk 0:03:01.5]} 3. c4 {[%clk 0:02:57.5]} 3... d5 {[%clk 0:03:01.8]}
4. Nc3 {[%clk 0:02:56.8]} 4... dxc4 {[%clk 0:03:02.1]} 5. e3 {[%clk 0:02:56.5]}
5... a6 {[%clk 0:02:58.7]} 6. a4 {[%clk 0:02:54.6]} 6... c5 {[%clk 0:02:57.7]}
7. Bxc4 {[%clk 0:02:55.2]} 7... Nc6 {[%clk 0:02:50.7]} 8. O-O {[%clk 0:02:55.5]}
8... Be7 {[%clk 0:02:51]} 9. dxc5 {[%clk 0:02:48.4]} 9... Qxd1 {[%clk
0:02:36.1]} 10. Rxd1 {[%clk 0:02:48.6]} 10... Bxc5 {[%clk 0:02:37.5]} 11. Ng5
{[%clk 0:02:48.4]} 11... Ke7 {[%clk 0:02:22.7]} 12. Nge4 {[%clk 0:02:46.3]}
12... Nxe4 {[%clk 0:02:22.7]} 13. Nxe4 {[%clk 0:02:47]} 13... Bb4 {[%clk
0:02:23.8]} 14. Bd2 {[%clk 0:02:35.3]} 14... Bd7 {[%clk 0:02:10.6]} 15. Be2
{[%clk 0:02:00.6]} 15... Rhd8 {[%clk 0:01:59.9]} 16. Rac1 {[%clk 0:01:56.3]}
16... Bxd2 {[%clk 0:01:44]} 17. Rxd2 {[%clk 0:01:56.5]} 17... Be8 {[%clk
0:01:35.7]} 18. Rcd1 {[%clk 0:01:50.9]} 18... Rxd2 {[%clk 0:01:31.3]} 19. Rxd2
{[%clk 0:01:51.3]} 19... Rc8 {[%clk 0:00:49.7]} 20. Kf1 {[%clk 0:01:13.8]} 20...
Nb4 {[%clk 0:00:42.9]} 21. Nc3 {[%clk 0:01:14.4]} 21... Bc6 {[%clk 0:00:40.1]}
22. e4 {[%clk 0:01:06.5]} 22... g5 {[%clk 0:00:35]} 23. Rd4 {[%clk 0:00:58.9]}
23... a5 {[%clk 0:00:34.8]} 24. f3 {[%clk 0:00:54.1]} 24... h5 {[%clk
0:00:35.7]} 25. Kf2 {[%clk 0:00:54]} 25... h4 {[%clk 0:00:36.9]} 26. Rd2 {[%clk
0:00:53.2]} 26... Be8 {[%clk 0:00:33.8]} 27. Ke3 {[%clk 0:00:50.8]} 27... Bc6
{[%clk 0:00:32.6]} 28. Kf2 {[%clk 0:00:49.4]} 28... Be8 {[%clk 0:00:30.5]} 29.
Ke3 {[%clk 0:00:50.4]} 29... Bc6 {[%clk 0:00:30.5]} 30. Kf2 {[%clk 0:00:51.3]}
30... Rh8 {[%clk 0:00:31.5]} 31. Ke3 {[%clk 0:00:49.3]} 31... Rg8 {[%clk
0:00:31.7]} 32. Kf2 {[%clk 0:00:49.3]} 32... Rc8 {[%clk 0:00:31.9]} 33. Ke3
{[%clk 0:00:49.9]} 33... Be8 {[%clk 0:00:31.6]} 34. Kf2 {[%clk 0:00:50.8]} 34...
Bc6 {[%clk 0:00:26.4]} 35. Ke3 {[%clk 0:00:51.6]} 35... Rh8 {[%clk 0:00:26.5]}
36. Kf2 {[%clk 0:00:52.4]} 36... Rc8 {[%clk 0:00:27.3]} 37. Ke3 {[%clk
0:00:53.3]} 37... Rh8 {[%clk 0:00:27.8]} 38. Kf2 {[%clk 0:00:54.3]} 38... Rc8
{[%clk 0:00:28.7]} 39. Ke3 {[%clk 0:00:55.1]} 39... Rb8 {[%clk 0:00:28.7]} 40.
Kf2 {[%clk 0:00:55.6]} 40... f6 {[%clk 0:00:29.5]} 41. Ke3 {[%clk 0:00:56.3]}
41... Rc8 {[%clk 0:00:30.6]} 42. Kf2 {[%clk 0:00:55.7]} 42... Rb8 {[%clk
0:00:30.7]} 43. Ke3 {[%clk 0:00:53.8]} 43... Rc8 {[%clk 0:00:31.6]} 44. Kf2
{[%clk 0:00:54.7]} 44... Bd7 {[%clk 0:00:31.5]} 45. Ke3 {[%clk 0:00:54.6]} 45...
e5 {[%clk 0:00:28.9]} 46. Bf1 {[%clk 0:00:23.3]} 46... Be6 {[%clk 0:00:29.4]}
47. Be2 {[%clk 0:00:22.2]} 47... Rd8 {[%clk 0:00:20.8]} 48. Rxd8 {[%clk
0:00:16.7]} 48... Kxd8 {[%clk 0:00:22.7]} 49. Kd2 {[%clk 0:00:16.9]} 49... Kd7
{[%clk 0:00:21.6]} 50. Bd1 {[%clk 0:00:06.2]} 50... Kd6 {[%clk 0:00:21.9]} 51.
g3 {[%clk 0:00:07.3]} 51... hxg3 {[%clk 0:00:22.3]} 52. hxg3 {[%clk 0:00:09.2]}
52... Kc5 {[%clk 0:00:23.5]} 53. Ke3 {[%clk 0:00:09.2]} 53... Nc6 {[%clk
0:00:18.1]} 54. f4 {[%clk 0:00:10.5]} 54... gxf4+ {[%clk 0:00:19.1]} 55. gxf4
{[%clk 0:00:12.4]} 55... exf4+ {[%clk 0:00:20.5]} 56. Kxf4 {[%clk 0:00:13.5]}
56... Kd4 {[%clk 0:00:22]} 57. Be2 {[%clk 0:00:13.1]} 57... Ne5 {[%clk 0:00:21]}
58. Nb5+ {[%clk 0:00:12.4]} 58... Kc5 {[%clk 0:00:22.1]} 59. Nc7 {[%clk
0:00:13.9]} 59... Bb3 {[%clk 0:00:21.1]} 60. Ne8 {[%clk 0:00:13.6]} 60... Nd7
{[%clk 0:00:20]} 61. Bb5 {[%clk 0:00:13.5]} 61... Nb6 {[%clk 0:00:20.3]} 62.
Nxf6 {[%clk 0:00:13.7]} 62... Bxa4 {[%clk 0:00:21.9]} 63. Bd3 {[%clk 0:00:04]}
63... Nd7 {[%clk 0:00:20.8]} 64. e5 {[%clk 0:00:03.5]} 64... Kd4 {[%clk
0:00:20.5]} 65. Nxd7 {[%clk 0:00:02.6]} 65... Bxd7 {[%clk 0:00:21.5]} 66. Bf5
{[%clk 0:00:04]} 66... Be8 {[%clk 0:00:22.7]} 67. e6 {[%clk 0:00:04.7]} 67...
Kd5 {[%clk 0:00:23.5]} 68. Bg4 {[%clk 0:00:04]} 68... Kd6 {[%clk 0:00:24]} 69.
Kf5 {[%clk 0:00:03.4]} 69... Ke7 {[%clk 0:00:25.2]} 70. Ke5 {[%clk 0:00:04.5]}
70... b6 {[%clk 0:00:26.6]} 71. Kd5 {[%clk 0:00:05.2]} 71... Ba4 {[%clk
0:00:27.2]} 72. Bf5 {[%clk 0:00:05.6]} 72... Be8 {[%clk 0:00:28.2]} 73. Bg4
{[%clk 0:00:06.1]} 73... Bb5 {[%clk 0:00:29.4]} 74. Bh3 {[%clk 0:00:07.1]} 74...
Be8 {[%clk 0:00:30.4]} 75. Bg4 {[%clk 0:00:07.9]} 75... Bb5 {[%clk 0:00:31.6]}
76. Bh3 {[%clk 0:00:09]} 76... Be8 {[%clk 0:00:32.7]} 77. Bg4 {[%clk 0:00:09.7]}
77... Bb5 {[%clk 0:00:33.6]} 78. Bh3 {[%clk 0:00:10.4]} 78... Be8 {[%clk
0:00:34.6]} 79. Bg4 {[%clk 0:00:11.3]} 1/2-1/2